bitfinex-derivatives/quotes_ETHF0:USTF0_20260209
["timestamp","ask_amount","ask_price","bid_price","bid_amount"]
[1770659073692,10.86156579,2133.1,2132.4,0.00402414]
[1770659073893,10.86156579,2133.1,2132.1,10.70109985]
[1770659074296,75.53510175,2132.9,2132.2,9.58645556]
[1770659074600,75.53510175,2132.9,2132.2,2.54648309]
[1770659074800,75.53510175,2132.9,2132.2,2.55048929]
[1770659075101,10.86156579,2132.5,2132.2,0.0040062]
[1770659075303,10.86156579,2133.5,2132.0,10.70109985]
[1770659075598,10.86156579,2133.5,2132.5,14.64969689]
[1770659075796,10.86156579,2133.5,2132.6,7.0399993]
[1770659075990,73.18116361,2133.3,2132.7,7.0399993]
[1770659076194,73.18116361,2133.3,2132.8,10.98745475]
[1770659076393,73.18116361,2133.3,2132.9,7.03885771]
[1770659076692,10.86156579,2133.3,2132.7,0.00452663]
[1770659077193,73.18116361,2132.8,2132.7,0.00452663]
[1770659077393,55.75454445,2132.8,2132.6,1.42676047]
[1770659077595,10.86156579,2133.3,2132.4,10.70109985]
[1770659077803,10.86156579,2133.3,2132.0,10.70109985]
[1770659078198,10.86156579,2133.3,2132.4,17.03831525]
[1770659078502,10.86486931,2133.6,2132.5,17.03831525]
[1770659078695,53.78164748,2133.2,2132.4,6.34249192]
[1770659078890,64.64321327,2133.2,2132.4,6.34249192]
[1770659079096,8.50762765,2133.2,2132.4,6.34249192]
[1770659079293,0.29450175,2133.2,2132.6,5.59772012]
[1770659079500,0.00330352,2133.6,2132.4,0.00527652]
[1770659079798,53.78164748,2132.8,2132.2,10.70109985]
[1770659080101,0.00330352,2133.6,2131.9,11.62692443]
[1770659080302,0.23782352,2133.6,2131.9,11.62692443]
[1770659080802,53.78164748,2132.8,2131.9,11.63129756]
[1770659081310,1.69303458,2132.1,2131.9,11.63129756]
[1770659081601,1.23444993,2132.1,2131.9,11.63129756]
[1770659082103,0.23445,2134.2,2132.6,11.62692443]
[1770659082699,53.78164748,2133.6,2132.6,11.62692443]
[1770659083096,0.00554887,2133.6,2132.6,11.62692443]
[1770659083298,53.78164748,2133.3,2132.6,11.62692443]
[1770659084307,0.00554887,2133.6,2132.6,11.62692443]
[1770659084502,53.78719635,2133.6,2132.6,11.62692443]
[1770659085102,53.78164748,2133.3,2132.6,11.62692443]
[1770659085307,0.18133948,2134.0,2132.6,11.62692443]
[1770659085606,51.43325821,2133.1,2132.2,11.53625469]
[1770659085807,0.19053843,2133.5,2132.2,11.53625469]
[1770659086211,51.43325821,2132.9,2132.2,11.53625469]
[1770659086605,0.18927473,2133.3,2132.2,11.53625469]
[1770659086606,51.43325821,2132.6,2132.2,11.53625469]
[1770659086902,0.18927473,2133.3,2132.2,11.53625469]
[1770659087113,51.43325821,2133.0,2132.2,11.53625469]
[1770659088010,51.43325821,2132.7,2132.2,11.53625469]
[1770659088311,5.76762,2134.2,2132.2,11.53625469]
[1770659088312,0.09262665,2133.8,2132.2,11.53625469]
[1770659088513,45.65866898,2133.3,2132.2,11.53625469]
[1770659088712,45.65866898,2133.3,2132.4,11.58521058]
[1770659089009,0.09262665,2133.6,2132.6,11.58521058]
[1770659089210,0.09653016,2133.6,2132.7,18.05247447]
[1770659089408,45.56604233,2133.3,2132.8,18.05247447]
[1770659089608,0.23453,2133.5,2132.2,11.6315239]
[1770659089808,0.20630657,2133.4,2132.0,11.53484381]
[1770659090009,45.56604233,2132.7,2132.0,11.53484381]
[1770659090511,45.56604233,2132.3,2132.0,11.53484381]
[1770659090711,44.95578256,2132.3,2132.0,11.53484381]
[1770659091206,41.50816193,2132.3,2132.0,11.53484381]
[1770659091410,39.0064751,2132.3,2132.0,11.53484381]
[1770659092408,35.48570617,2132.3,2132.0,11.53484381]
[1770659092816,35.48570617,2132.3,2131.9,0.00437313]
[1770659093116,35.48570617,2132.0,2131.9,11.53921694]
[1770659093305,28.44852082,2132.0,2131.9,11.53921694]
[1770659093507,28.44852082,2132.0,2131.3,0.23476]
[1770659093508,28.44852082,2132.0,2131.3,18.20761478]
[1770659093715,28.44852082,2132.0,2131.4,11.53484381]
[1770659093910,28.44359944,2131.8,2131.4,11.53484381]
[1770659094311,26.0896613,2131.8,2131.4,11.53484381]
[1770659094516,25.78446053,2131.8,2131.4,11.53902458]
[1770659095410,0.82821457,2132.5,2131.4,11.53902458]
[1770659095609,11.39681165,2133.0,2131.6,11.53484381]
[1770659095917,11.39681165,2133.0,2131.7,11.53484381]
[1770659096114,11.39681165,2133.0,2131.8,11.53484381]
[1770659096517,11.40122032,2133.0,2131.8,11.53484381]
[1770659096919,11.40122032,2133.0,2131.9,11.53484381]
[1770659097414,9.04728218,2133.0,2132.0,5.357086]
[1770659097804,9.04728218,2133.0,2131.9,5.357086]
[1770659098209,9.04728218,2133.0,2132.0,5.357086]
[1770659098612,9.04728218,2133.0,2132.1,11.53484381]
[1770659098812,9.04728218,2133.0,2132.2,16.89192981]
[1770659099413,9.04728218,2133.0,2132.3,5.357086]
[1770659099612,9.04728218,2133.0,2132.4,5.357086]
[1770659099808,9.04728218,2133.0,2132.3,5.357086]
[1770659100211,9.04728218,2133.0,2131.9,6.67277097]
[1770659100514,6.69334404,2133.0,2131.9,11.53484381]
[1770659100712,6.69334404,2133.0,2132.0,11.53484381]
[1770659101112,0.00440867,2133.0,2132.2,11.53484381]
[1770659101420,10.93920396,2133.4,2132.2,11.53484381]
[1770659101621,10.93920396,2133.4,2132.3,5.52059401]
[1770659101813,10.93920396,2133.4,2132.4,5.52059401]
[1770659102013,10.93920396,2133.4,2132.0,11.53484381]
[1770659102310,10.94386561,2133.4,2132.0,11.53484381]
[1770659102513,10.94386561,2133.4,2132.0,11.76952381]
[1770659102820,10.94386561,2133.4,2132.1,11.53484381]
[1770659103219,10.56122561,2133.4,2132.3,11.53484381]
[1770659103519,8.20728747,2133.4,2132.3,11.53484381]
[1770659104117,7.56855308,2133.2,2131.8,11.53484381]
[1770659106317,5.21461494,2133.2,2131.8,11.53484381]
[1770659106717,5.21461494,2133.2,2132.2,11.53484381]
[1770659107518,5.21461494,2133.2,2132.3,11.53484381]
[1770659108122,5.21461494,2133.2,2132.1,15.57942561]
[1770659108329,5.21461494,2133.2,2132.2,11.53484381]
[1770659108523,0.00466165,2133.4,2132.7,11.53484381]
[1770659108724,0.00466165,2133.4,2132.8,15.57942561]
[1770659108926,0.00466165,2133.4,2132.9,11.53484381]
[1770659109231,0.00466165,2133.4,2132.9,11.54000247]
[1770659109422,3.34630895,2133.4,2132.9,0.00515866]
[1770659109640,1.0,2134.0,2132.5,17.30687381]
[1770659109829,5.76315,2135.8,2132.2,5.77265]
[1770659109830,4.0122419,2135.8,2134.4,11.53484381]
[1770659110031,4.0122419,2136.1,2134.5,11.53484381]
[1770659110531,0.00338557,2136.1,2134.7,11.53484381]
[1770659110838,4.01562747,2136.1,2134.7,11.53484381]
[1770659111137,4.0122419,2135.9,2134.5,0.0049797]
[1770659111532,4.0122419,2135.9,2134.5,11.53982351]
[1770659112435,1.65830376,2135.9,2134.5,11.53982351]
[1770659113531,1.1571581,2136.1,2135.0,11.53484381]
[1770659115239,1.1571581,2136.1,2134.6,11.53484381]
[1770659115537,10.469,2137.0,2135.3,11.18453618]
[1770659115538,5.99435,2136.9,2135.3,11.18453618]
[1770659115732,0.1066236,2136.8,2135.3,11.18453618]
[1770659116535,0.11150294,2136.8,2135.3,11.18453618]
[1770659117532,0.00487934,2136.8,2135.3,11.18453618]
[1770659117738,0.00487934,2136.8,2135.9,11.57066952]
[1770659117938,0.40058964,2136.8,2135.9,11.57066952]
[1770659118139,0.40058964,2136.8,2135.1,11.42612616]
[1770659118536,0.23416,2136.8,2135.1,11.42612616]
[1770659118940,5.99458,2136.8,2135.1,11.42612616]
[1770659119139,0.0083703,2136.7,2135.1,11.42612616]
[1770659119339,0.0083703,2136.5,2135.1,11.42612616]
[1770659119545,0.01278226,2136.5,2135.1,11.42612616]
[1770659119839,5.99617,2136.3,2135.1,11.42612616]
[1770659120035,0.23426,2135.9,2134.8,11.62816647]
[1770659120237,5.99824,2135.5,2134.5,0.0049797]
[1770659120535,5.99824,2135.5,2132.7,5.28164078]
[1770659120536,5.99998,2134.9,2133.9,11.39027774]
[1770659120731,6.24108745,2135.0,2132.5,3.69487756]
[1770659120732,5.76584,2134.8,2133.6,11.39027774]
[1770659120938,0.23438,2134.8,2133.6,11.39027774]
[1770659121438,0.23834666,2134.8,2133.6,11.39463261]
[1770659121638,0.23438,2134.8,2133.6,11.39463261]
[1770659122547,0.67321191,2135.8,2134.4,11.40869551]
[1770659122739,0.00413648,2134.8,2134.4,11.40869551]
[1770659123241,0.23442,2134.5,2133.4,11.40869551]
[1770659123442,0.23444,2134.2,2133.4,11.40869551]
[1770659123942,0.23002513,2134.1,2133.4,11.40869551]
[1770659124448,0.23002513,2134.1,2133.4,11.41271383]
[1770659124743,0.2041765,2134.3,2133.4,11.41271383]
[1770659125049,0.23444,2134.2,2133.4,8.4341012]
[1770659126145,0.23444,2134.2,2133.4,0.00401832]
[1770659126146,3.30146913,2134.2,2133.4,0.00401832]
[1770659126546,0.23444,2134.2,2133.4,11.14960657]
[1770659126846,3.30146913,2134.2,2133.4,11.14960657]
[1770659127544,0.23444,2134.2,2133.4,11.14960657]
[1770659129351,1.39332422,2134.2,2133.1,11.14558825]
[1770659130343,1.4064558,2133.7,2132.7,11.14558825]
[1770659130754,4.82054766,2134.0,2132.7,11.14558825]
[1770659131050,0.2345,2133.7,2131.8,11.62816647]
[1770659131346,0.2345,2133.7,2131.8,11.63293232]
[1770659132249,6.00336,2133.7,2131.8,11.63293232]
[1770659133756,0.00091864,2133.6,2131.8,11.63293232]
[1770659135056,0.00091864,2133.4,2131.8,11.63293232]
[1770659135859,0.07477356,2133.2,2131.8,11.63293232]
[1770659136055,0.08075473,2133.2,2131.8,11.63293232]
[1770659136250,0.00598117,2133.2,2131.8,11.63293232]
[1770659136752,24.083,2134.0,2131.8,11.63293232]
[1770659137154,0.23454,2133.3,2131.8,11.63293232]
[1770659137750,0.01289793,2133.2,2131.8,11.63293232]
[1770659138761,0.01289793,2133.0,2131.8,11.63293232]
[1770659139358,0.01289793,2132.8,2131.5,11.6217175]
[1770659139557,0.23461,2132.7,2131.5,11.6217175]
[1770659139763,3.66400979,2133.1,2131.5,11.6217175]
[1770659140260,0.23461,2132.7,2131.5,11.6217175]
[1770659140561,0.23461,2132.7,2131.5,11.62635704]
[1770659140758,0.23466,2132.3,2131.5,0.00463954]
[1770659140963,0.23471,2131.9,2130.1,11.62816647]
[1770659141160,0.23471,2131.9,2130.3,11.62816647]
[1770659141756,6.00846,2131.9,2130.3,11.62816647]
[1770659141960,0.23475,2131.5,2130.3,11.63384161]
[1770659142264,0.24037168,2131.5,2130.3,11.63384161]
[1770659142663,0.24037168,2131.5,2130.3,11.41295635]
[1770659142863,3.66097354,2131.6,2130.3,11.41295635]
[1770659143369,6.00958,2131.5,2130.3,11.41295635]
[1770659143560,0.23475,2131.5,2130.3,11.41295635]
[1770659144065,0.24053796,2131.5,2130.3,11.41295635]
[1770659144256,6.01529796,2131.5,2130.3,11.63384161]
[1770659144560,6.01527796,2131.5,2130.3,11.63384161]
[1770659145057,6.01527796,2131.5,2130.3,0.00567514]
[1770659145258,6.01033,2131.2,2130.3,0.00567514]
[1770659145865,3.65639186,2131.2,2130.3,0.00567514]
[1770659146061,0.23478,2131.2,2130.3,0.00567514]
[1770659146560,6.01039,2131.2,2130.3,0.00567514]
[1770659146754,0.23483,2130.7,2129.1,11.64796629]
[1770659147256,0.23488,2130.2,2129.1,11.64796629]
[1770659147663,6.01315,2130.2,2129.1,0.00546401]
[1770659147961,0.23488,2130.2,2128.8,11.64796629]
[1770659148366,0.23482,2130.9,2128.8,11.64796629]
[1770659148856,5.77563,2131.2,2128.8,11.88299629]
[1770659149061,0.23482,2130.9,2128.8,11.8878903]
[1770659150162,6.01128,2130.9,2128.8,11.8878903]
[1770659150363,0.23485,2130.6,2128.8,11.8878903]
[1770659151669,0.23485,2130.6,2128.8,11.6528603]
[1770659152064,3.65764186,2130.8,2128.8,11.6528603]
[1770659152365,0.23485,2130.6,2128.8,11.6528603]
[1770659152561,6.01204,2130.6,2128.8,11.6528603]
[1770659153469,6.01204,2130.6,2128.8,11.6028603]
[1770659153972,0.23485,2130.6,2128.8,11.6028603]
[1770659154267,6.0121,2130.6,2128.8,11.6028603]
[1770659154468,0.23489,2130.2,2128.8,11.6028603]
[1770659154865,6.01323,2130.2,2128.8,11.6028603]
[1770659155066,0.23489,2130.2,2128.8,11.6028603]
[1770659156771,3.89246186,2130.8,2128.8,11.6028603]
[1770659157065,6.0126,2130.4,2128.8,11.6028603]
[1770659157270,0.23491,2130.0,2128.8,11.6028603]
[1770659157470,0.23878909,2130.0,2128.8,11.6028603]
[1770659158165,3.66317095,2130.2,2128.8,11.6028603]
[1770659158368,0.23491,2130.0,2128.8,11.6028603]
[1770659159070,6.01827946,2130.0,2128.8,11.6028603]
[1770659159264,6.01827946,2130.0,2128.8,0.00489401]
[1770659159465,0.23942946,2130.0,2128.8,11.6528603]
[1770659159969,0.23496,2129.6,2128.8,11.6528603]
[1770659160768,3.56483996,2129.2,2127.7,11.50085453]
[1770659161072,1.21090182,2129.2,2127.7,11.50085453]
[1770659161667,1.44590182,2129.2,2127.7,11.50085453]
[1770659161966,0.235,2129.2,2127.7,11.50603745]
[1770659162160,1.46429584,2129.2,2127.7,11.50603745]
[1770659162368,0.235,2129.2,2127.7,11.50603745]
[1770659162567,1.46429584,2129.2,2127.7,11.50603745]
[1770659162968,5.78263,2128.6,2127.7,11.50603745]
[1770659163169,1.22929584,2128.5,2127.7,11.50603745]
[1770659163362,1.46437584,2128.4,2127.7,0.00518292]
[1770659163672,1.46437584,2128.4,2126.3,11.50085453]
[1770659164171,6.01839,2128.4,2126.3,11.50085453]
[1770659164670,6.02250936,2128.4,2126.3,11.50520101]
[1770659165071,0.23919936,2128.4,2126.3,11.50520101]
[1770659165270,0.23514,2127.9,2126.3,11.50520101]
[1770659165472,0.23514,2127.9,2125.7,5.79037]
[1770659165473,10.90195626,2127.1,2124.9,17.29344453]
[1770659165668,10.90195626,2126.8,2125.2,11.50085453]
[1770659165972,10.90195626,2125.6,2123.9,11.50085453]
[1770659166273,10.90195626,2125.6,2123.9,7.73685453]
[1770659166571,10.90195626,2125.4,2123.9,7.7426258]
[1770659167178,8.54801812,2125.4,2123.9,7.7426258]
[1770659167672,10.90195626,2124.9,2123.9,0.00577127]
[1770659167873,10.90195626,2124.7,2123.9,0.00577127]
[1770659168069,10.90195626,2124.3,2123.1,11.50085453]
[1770659168569,10.90195626,2124.3,2122.0,11.50085453]
[1770659168768,5.79513,2124.0,2122.0,11.50085453]
[1770659168975,10.90195626,2123.9,2122.1,11.50085453]
[1770659169171,10.90195626,2125.3,2123.0,5.79786]
[1770659169368,10.90195626,2125.3,2123.7,11.50085453]
[1770659169568,10.90195626,2126.0,2123.9,11.50085453]
[1770659169765,10.90195626,2126.0,2123.9,11.50638065]
[1770659169766,10.90757811,2126.0,2123.9,11.50638065]
[1770659170166,10.90195626,2125.7,2123.9,11.50638065]
[1770659170873,10.90195626,2126.1,2124.1,11.50085453]
[1770659171069,10.90195626,2126.1,2124.4,5.79403]
[1770659171272,10.90650538,2126.1,2124.5,11.50085453]
[1770659171475,0.00454912,2126.1,2124.5,11.50085453]
[1770659171673,10.90195626,2126.4,2124.5,11.50085453]
[1770659172772,10.90195626,2126.2,2124.5,11.50085453]
[1770659173275,8.54801812,2126.2,2124.5,11.50085453]
[1770659173667,0.23531,2126.3,2124.5,11.50085453]
[1770659174074,11.13726626,2126.3,2124.5,11.50085453]
[1770659174572,10.90195626,2126.2,2124.5,11.50085453]
[1770659174876,10.90195626,2126.0,2124.5,11.50085453]
[1770659175679,10.93816516,2125.8,2124.5,11.50085453]
[1770659176076,10.93816516,2125.6,2124.5,11.50085453]
[1770659176381,8.58422702,2125.6,2124.5,11.50085453]
[1770659176571,10.93816516,2125.4,2124.5,11.50085453]
[1770659176776,10.93816516,2125.4,2124.0,11.1930849]
[1770659176972,10.93816516,2125.2,2124.0,11.1930849]
[1770659178578,0.23543,2125.3,2124.0,11.1930849]
[1770659179280,8.81965702,2125.5,2124.0,11.1930849]
[1770659180184,11.32354146,2125.3,2124.0,11.1930849]
[1770659180889,11.08811146,2125.0,2123.9,0.00552612]
[1770659181384,5.79221,2125.1,2123.9,0.00552612]
[1770659181385,11.08811146,2124.8,2123.9,0.00552612]
[1770659181588,11.09357515,2124.8,2123.9,10.60109767]
[1770659182080,0.23549,2124.7,2123.9,10.60109767]
[1770659182288,11.32360146,2124.7,2123.9,0.00552612]
[1770659182586,8.96966332,2124.7,2123.9,0.00552612]
[1770659183285,8.96966332,2124.7,2123.9,10.60109767]
[1770659183286,0.23549,2124.7,2123.9,10.60109767]
[1770659183488,11.32360146,2124.7,2123.9,0.00552612]
[1770659183978,0.00546369,2124.8,2123.9,10.60109767]
[1770659184385,11.32905515,2124.8,2123.9,10.60109767]
[1770659184584,11.32905515,2124.8,2123.9,0.00552612]
[1770659184785,11.08811146,2124.5,2123.9,6.12e-06]
[1770659185490,0.2355,2124.6,2123.9,10.59557767]
[1770659185692,0.00546369,2124.8,2123.9,10.59557767]
[1770659188291,30.444,2125.5,2123.9,10.59557767]
[1770659188490,0.23541,2125.4,2123.9,10.59557767]
[1770659189395,0.24146043,2125.4,2123.9,10.59557767]
[1770659190297,11.32957189,2125.4,2123.9,10.59557767]
[1770659191488,8.97563375,2125.4,2123.9,10.59557767]
[1770659191687,9.21104375,2125.4,2123.9,10.59557767]
[1770659192486,0.00476871,2125.4,2124.2,0.23555]
[1770659192689,0.00476871,2125.4,2124.5,10.59557155]
[1770659193592,0.23536,2125.9,2124.5,10.59557155]
[1770659194291,30.45,2126.5,2124.9,10.59557155]
[1770659194495,6.70654481,2126.9,2125.1,10.59557155]
[1770659194693,6.71247363,2126.9,2125.1,10.59557155]
[1770659195090,0.24117882,2126.9,2125.3,10.59557155]
[1770659195296,0.00592882,2126.9,2125.5,10.59557155]
[1770659195493,0.00592882,2126.9,2125.7,10.59557155]
[1770659195687,6.7269455,2127.8,2125.9,10.59557155]
[1770659195895,6.7269455,2128.3,2126.6,10.59557155]
[1770659196100,6.7269455,2127.9,2126.6,10.59557155]
[1770659196295,3.297,2128.4,2126.6,10.59557155]
[1770659196599,6.7269455,2129.1,2127.0,10.59557155]
[1770659196801,6.7269455,2128.5,2127.2,10.59557155]
[1770659197002,6.7269455,2128.1,2127.2,10.59557155]
[1770659197509,4.37300736,2128.1,2127.2,10.59557155]
[1770659197806,0.2351,2128.2,2127.2,10.59557155]
[1770659198304,4.59094147,2128.2,2127.2,10.59557155]
[1770659198509,4.35584147,2127.9,2126.8,10.59557155]
[1770659199102,4.35584147,2127.4,2126.2,10.59557155]
[1770659199308,3.72145104,2127.5,2126.2,10.59557155]
[1770659199507,4.35584147,2127.5,2126.2,10.59557155]
[1770659200205,4.36096286,2127.5,2126.2,10.59919133]
[1770659200597,2.00702472,2127.5,2126.2,10.59919133]
[1770659201808,0.00512139,2127.5,2126.2,10.59919133]
[1770659203504,2.11519831,2127.4,2126.2,10.59919133]
[1770659203705,5.78593,2127.4,2126.2,10.59919133]
[1770659203904,6.02112,2127.4,2126.2,10.59919133]
[1770659204209,0.23519,2127.4,2126.2,10.59919133]
[1770659204706,0.24122327,2127.4,2126.2,10.59919133]
[1770659205903,0.25037613,2127.2,2126.2,10.59919133]
[1770659206106,0.23522,2127.2,2126.2,10.59919133]
[1770659206705,3.68760126,2127.7,2126.2,10.59919133]
[1770659207504,0.23522,2127.2,2126.2,10.59919133]
[1770659207704,5.78831,2126.5,2125.6,11.15757582]
[1770659207905,0.23533,2126.3,2125.3,11.15757582]
[1770659208107,6.02423,2126.3,2125.3,11.15757582]
[1770659208310,0.23537,2125.8,2125.3,10.67853582]
[1770659208809,0.23918797,2125.8,2125.3,0.00352756]
[1770659209000,0.23918797,2125.8,2125.0,10.12643854]
[1770659209208,6.02941797,2125.8,2123.7,10.53987268]
[1770659209396,8.57695939,2125.8,2123.7,10.53987268]
[1770659209601,0.23539,2125.6,2123.7,10.53987268]
[1770659209809,0.42899328,2125.7,2123.7,10.53987268]
[1770659210102,6.14507235,2125.6,2123.7,10.53987268]
[1770659210304,0.35429235,2125.4,2123.7,10.544514]
[1770659211101,0.35432235,2125.2,2123.7,10.544514]
[1770659211304,0.23544,2125.2,2123.7,10.544514]
[1770659212704,5.79076,2125.6,2123.7,10.544514]
[1770659212911,5.79104,2125.5,2123.7,10.544514]
[1770659213508,0.23544,2125.2,2123.7,10.544514]
[1770659214307,0.30965379,2125.0,2123.7,10.544514]
[1770659214506,0.23546,2125.0,2123.7,10.544514]
[1770659215904,7.46878669,2125.3,2123.7,10.544514]
[1770659216214,0.23546,2125.0,2123.7,10.544514]
[1770659216410,0.33824542,2125.6,2123.7,10.544514]
[1770659216710,0.2354,2125.6,2123.7,10.544514]
[1770659217607,0.00381797,2125.8,2124.3,11.59503776]
[1770659218911,28.32720983,2126.2,2124.3,11.59503776]
[1770659219408,9.74706104,2125.8,2124.3,11.59503776]
[1770659219712,3.95683104,2125.8,2124.3,11.59503776]
[1770659219913,3.96192479,2125.8,2124.3,11.59503776]
[1770659220108,5.79132,2125.4,2124.3,11.59503776]
[1770659220314,6.02674,2125.4,2124.3,11.59503776]
[1770659220514,0.23542,2125.4,2124.3,11.59503776]
[1770659220815,0.13725722,2124.9,2124.0,11.57783186]
[1770659221110,0.13725722,2125.2,2124.0,11.57783186]
[1770659221322,0.13725722,2124.8,2124.0,11.57783186]
[1770659221508,0.23549,2124.7,2124.0,11.57783186]
[1770659221903,7.40696291,2125.1,2124.0,11.57783186]
[1770659222109,0.23549,2124.7,2124.0,11.57783186]
[1770659222616,0.23549,2124.7,2123.7,11.64520678]
[1770659224911,1.7796386,2125.1,2123.7,11.64520678]
[1770659225112,0.23549,2124.7,2123.7,11.64520678]
[1770659227613,0.23554,2124.3,2123.4,11.28280739]
[1770659228014,4.31555195,2124.5,2123.4,11.28280739]
[1770659228314,0.23549,2124.8,2123.4,11.28280739]
[1770659228617,0.88726744,2124.6,2123.4,11.28770342]
[1770659228818,0.88729744,2124.4,2123.4,11.28770342]
[1770659229117,0.23555,2124.2,2123.4,11.28770342]
[1770659229317,11.58010637,2124.0,2123.1,10.53987268]
[1770659229616,0.23557,2124.0,2123.1,10.53987268]
[1770659230412,0.23552,2124.5,2123.1,10.5436693]
[1770659231012,9.22611823,2124.7,2123.1,10.5436693]
[1770659231211,0.23552,2124.5,2123.1,10.5436693]
[1770659231416,0.14752,2124.5,2123.1,10.5436693]
[1770659232719,9.87902255,2124.5,2123.1,10.5436693]
[1770659233115,0.14752,2124.5,2123.1,10.5436693]
[1770659234217,0.00421327,2124.8,2123.1,10.7793293]
[1770659235221,0.23549,2124.7,2123.1,10.7793293]
[1770659235719,0.00421327,2124.8,2123.6,10.9348573]
[1770659235920,0.00421327,2124.8,2123.8,10.9348573]
[1770659236119,7.77971642,2124.8,2123.8,10.9348573]
[1770659236519,0.23970327,2124.8,2123.8,10.9348573]
[1770659236718,0.23553,2124.4,2123.8,10.9348573]
[1770659237125,5.42160501,2124.7,2123.8,10.9348573]
[1770659237324,0.00421327,2124.8,2123.8,10.9348573]
[1770659237921,0.23549,2124.7,2123.8,10.9348573]
[1770659239520,5.4676022,2124.7,2123.8,10.9348573]
[1770659239722,2.93046344,2124.6,2123.8,10.9348573]
[1770659240028,0.23561,2123.7,2122.2,11.16783722]
[1770659240225,2.93046344,2123.7,2122.2,11.16783722]
[1770659240417,0.23561,2123.7,2122.2,11.16783722]
[1770659241023,0.23561,2123.7,2122.2,11.17164032]
[1770659242025,7.67821937,2123.7,2122.2,11.17164032]
[1770659242222,0.23561,2123.7,2122.2,11.17164032]
[1770659242624,7.67822937,2123.5,2122.2,11.17164032]
[1770659243226,5.32429123,2123.5,2122.2,11.17164032]
[1770659243522,0.23562,2123.5,2122.2,11.17164032]
[1770659243725,0.23557,2124.1,2122.4,11.16783722]
[1770659244329,0.23557,2124.1,2122.6,11.16783722]
[1770659245623,11.34053997,2124.1,2122.6,11.16783722]
[1770659245828,0.23558,2123.9,2122.6,11.16783722]
[1770659246330,3.19173183,2124.0,2122.6,11.16783722]
[1770659246531,0.23558,2123.9,2122.6,11.16783722]
[1770659246931,3.48701317,2123.9,2122.6,11.16783722]
[1770659247132,0.2356,2123.7,2122.6,11.16783722]
[1770659248129,0.23572,2122.7,2122.2,0.0038031]
[1770659248335,3.74330903,2122.7,2122.2,0.0038031]
[1770659248534,0.00573622,2122.7,2122.2,11.17164032]
[1770659249429,0.23571,2122.8,2122.2,11.17164032]
[1770659250436,0.23565,2123.4,2122.2,11.17164032]
[1770659251135,30.468,2123.6,2122.2,11.17164032]
[1770659251335,0.0047156,2123.6,2122.2,11.17164032]
[1770659252025,3.97433794,2124.6,2122.8,11.16783722]
[1770659252343,1.6203998,2124.7,2122.8,11.16783722]
[1770659252628,10.1053998,2124.1,2122.8,2.68283722]
[1770659253028,16.6702098,2123.6,2122.8,2.14987722]
[1770659253233,16.6702098,2123.6,2122.5,11.16783722]
[1770659253234,10.6383598,2123.3,2122.5,11.16783722]
[1770659253435,10.6383598,2123.3,2122.2,11.17164032]
[1770659253630,0.23566,2123.2,2122.2,11.17164032]
[1770659254436,0.2356,2123.8,2122.2,11.17164032]
[1770659255439,30.47633711,2124.1,2122.2,11.17164032]
[1770659255635,0.2356,2123.8,2122.2,11.17164032]
[1770659255936,0.2356,2123.8,2122.4,11.16783722]
[1770659258340,6.36119953,2123.9,2122.4,11.16783722]
[1770659258537,0.2356,2123.8,2122.4,11.16783722]
[1770659259538,30.47633711,2124.1,2122.2,0.2395631]
[1770659259539,0.00533711,2124.1,2122.6,11.16783722]
[1770659259840,0.00533711,2124.1,2122.8,11.16783722]
[1770659261337,4.0977511,2124.7,2122.8,11.16783722]
[1770659261543,0.23554,2124.3,2122.8,11.16783722]
[1770659262438,0.24115118,2124.3,2122.8,11.16783722]
[1770659263636,0.23548,2124.8,2123.4,11.16783722]
[1770659263843,4.33630866,2124.8,2123.4,11.16783722]
[1770659264338,0.23553,2124.4,2123.4,11.16783722]
[1770659264542,0.24078915,2124.4,2123.4,11.16783722]
[1770659264737,2.21761245,2124.4,2123.4,11.16783722]
[1770659265542,0.24078915,2124.4,2123.4,11.16783722]
[1770659267348,0.2402656,2124.2,2123.4,2.68383722]
[1770659267547,8.23147745,2124.3,2123.4,2.68383722]
[1770659267944,8.40271506,2124.2,2123.4,2.68383722]
[1770659269143,26.97133002,2125.1,2123.4,2.68383722]
[1770659269442,8.40271506,2125.1,2123.6,10.50965142]
[1770659269644,8.63819506,2124.9,2123.6,10.50965142]
[1770659270243,0.23956458,2124.9,2123.6,10.50965142]
[1770659270449,5.5564873,2125.2,2123.6,10.50965142]
[1770659271450,30.70342,2125.4,2123.8,10.50965142]
[1770659271651,0.00493776,2125.2,2123.8,10.50965142]
[1770659272849,0.00493776,2125.2,2123.8,10.51406332]
[1770659273242,5.92400479,2126.3,2124.2,16.30423142]
[1770659273444,5.92400479,2126.4,2124.3,10.50965142]
[1770659273643,3.57006665,2126.4,2124.3,10.50965142]
[1770659274345,3.57344729,2126.4,2124.3,10.50965142]
[1770659274540,0.00338064,2126.4,2124.9,10.50965142]
[1770659274750,3.58078089,2126.4,2124.9,10.50965142]
[1770659275648,3.57740025,2126.0,2124.9,10.50965142]
[1770659276352,0.23534,2126.1,2124.9,10.50965142]
[1770659276654,0.00338064,2126.4,2124.9,10.50965142]
[1770659277451,1.40122207,2126.4,2124.9,10.50965142]
[1770659278048,0.00338064,2126.4,2124.9,10.50965142]
[1770659279658,5.30500737,2126.9,2124.9,10.50965142]
[1770659280358,0.23528,2126.7,2124.9,10.50965142]
[1770659280559,6.02308,2126.7,2124.9,10.50965142]
[1770659280760,6.0266432,2126.7,2124.9,10.50965142]
[1770659280954,0.23532,2126.3,2124.9,10.50965142]
[1770659281156,0.23537,2125.9,2124.9,10.50965142]
[1770659281360,0.23542,2125.4,2124.6,11.64067902]
[1770659281854,0.23542,2125.4,2123.9,11.64067902]
[1770659281855,6.02676,2125.4,2123.9,11.64067902]
[1770659282059,0.23542,2125.4,2123.9,11.64067902]
[1770659282470,6.02684,2125.4,2123.9,11.64067902]
[1770659282670,3.67290186,2125.4,2123.9,11.64067902]
[1770659283463,3.90832186,2125.4,2123.9,11.64067902]
[1770659283666,0.23542,2125.4,2123.9,11.64067902]
[1770659285471,0.23536,2125.9,2124.1,11.64067902]
[1770659285671,30.451,2126.1,2124.1,11.64067902]
[1770659285672,28.33242186,2126.1,2124.1,11.64067902]
[1770659286383,0.23536,2125.9,2124.3,11.64067902]
[1770659287174,0.23536,2125.9,2124.5,11.64067902]
[1770659288076,28.33242186,2126.1,2124.5,11.64067902]
[1770659288282,28.33242186,2126.1,2124.7,11.64067902]
[1770659288481,0.23531,2126.4,2124.7,11.64067902]
[1770659288874,1.18193506,2126.7,2124.7,11.64067902]
[1770659289181,1.18193506,2126.7,2124.2,5.7945]
[1770659289182,0.23531,2126.4,2124.9,11.64067902]
[1770659289779,0.23902143,2126.4,2124.9,11.64067902]
[1770659290277,0.00371143,2126.4,2125.3,11.64067902]
[1770659290476,0.00371143,2126.4,2125.3,11.64521485]
[1770659290672,5.79242143,2126.4,2125.3,11.64521485]